fUST/lending_fUST_20240115
["ID","MTS","AMOUNT","RATE_DAILY","PERIOD"]
[311598159,1705264241479,-7039.43,0.00027397,2]
[311598160,1705264241489,-500.0,0.00027397,2]
[311598162,1705264241499,-9189.85,0.00027397,2]
[311598164,1705264241508,-500.0,0.00027397,2]
[311598167,1705264241517,-26737.39,0.00027397,2]
[311598168,1705264241526,-1791.56,0.00027397,2]
[311598170,1705264241536,-500.0,0.00027397,2]
[311598172,1705264241545,-500.0,0.00027397,2]
[311598175,1705264241554,-500.0,0.00027397,2]
[311598176,1705264241563,-500.0,0.00027397,2]
[311598179,1705264241573,-4564.66,0.00027397,2]
[311598181,1705264241585,-500.0,0.00027397,2]
[311598183,1705264241594,-500.0,0.00027397,2]
[311598184,1705264241605,-362.72743992,0.00027397,2]
[311598186,1705264241614,-525.21,0.00027397,2]
[311598188,1705264241623,-500.0,0.00027397,2]
[311598190,1705264241632,-500.0,0.00027397,2]
[311598192,1705264241641,-500.0,0.00027397,2]
[311598195,1705264241651,-505.86534392,0.00027397,2]
[311598197,1705264241659,-500.0,0.00027397,2]
[311598199,1705264241669,-500.0,0.00027397,2]
[311598200,1705264241678,-500.0,0.00027397,2]
[311598202,1705264241688,-574.05346898,0.00027397,2]
[311598204,1705264241697,-500.0,0.00027397,2]
[311598207,1705264241707,-500.0,0.00027397,2]
[311598208,1705264241717,-500.0,0.00027397,2]
[311598211,1705264241727,-500.0,0.00027397,2]
[311598213,1705264241736,-500.0,0.00027397,2]
[311598215,1705264241745,-500.0,0.00027397,2]
[311598216,1705264241754,-500.0,0.00027397,2]
[311598218,1705264241763,-500.0,0.00027397,2]
[311598221,1705264241776,-500.0,0.00027397,2]
[311598223,1705264241786,-308.24075342,0.00027397,2]
[311598225,1705264241795,-500.0,0.00027397,2]
[311598227,1705264241804,-500.0,0.00027397,2]
[311598229,1705264241813,-500.0,0.00027397,2]
[311598231,1705264241822,-853.34,0.00027397,2]
[311598233,1705264241831,-500.0,0.00027397,2]
[311598235,1705264241840,-500.0,0.00027397,2]
[311598237,1705264241849,-500.0,0.00027397,2]
[311598239,1705264241858,-500.0,0.00027397,2]
[311598241,1705264241867,-500.0,0.00027397,2]
[311598243,1705264241876,-2618.63,0.00027397,2]
[311598245,1705264241885,-500.0,0.00027397,2]
[311598247,1705264241894,-500.0,0.00027397,2]
[311598249,1705264241903,-2567.95,0.00027397,2]
[311598251,1705264241912,-655.30601003,0.00027397,2]
[311598253,1705264241921,-540.92,0.00027399,2]
[311598255,1705264241930,-500.0,0.00027499,2]
[311598257,1705264241939,-540.92,0.00027499,2]
[311598259,1705264241948,-196.17678123,0.00027533,2]
[311598261,1705264241957,-500.0,0.00027534,2]
[311598263,1705264241966,-154.5972832,0.00027552,2]
[311598265,1705264241977,-540.92,0.0002757,2]
[311598267,1705264241987,-2000.0,0.000276,2]
[311598269,1705264241996,-198.8089634,0.000276,2]
[311598271,1705264242005,-2000.0,0.0002761,2]
[311598273,1705264242014,-2000.0,0.0002762,2]
[311598275,1705264242023,-2000.0,0.0002763,2]
[311598277,1705264242032,-2000.0,0.0002764,2]
[311598279,1705264242041,-2000.0,0.0002765,2]
[311598281,1705264242050,-2000.0,0.0002766,2]
[311598282,1705264242059,-6475.34296448,0.00027669,2]
[311598285,1705264242068,-2000.0,0.0002767,2]
[311598286,1705264242077,-540.92,0.0002767,2]
[311598288,1705264242087,-540.92,0.0002767,2]
[311598290,1705264242096,-540.92,0.0002767,2]
[311598293,1705264242105,-2717.640134,0.00027671,2]
[311598294,1705264242115,-2717.640134,0.00027671,2]
[311598296,1705264242124,-261.12680454,0.00027671,2]
[311598298,1705264242136,-274.18639859,0.00027671,2]
[311598300,1705264242145,-155.01395126,0.00027671,2]
[311598302,1705264242154,-500.0,0.00027671,2]
[311598304,1705264242163,-4239.46720335,0.00027671,7]
[311598306,1705264242172,-500.0,0.00027671,2]
[311598308,1705264242182,-500.0,0.00027671,2]
[311598310,1705264242191,-500.0,0.00027671,2]
[311598312,1705264242200,-500.0,0.00027671,2]
[311598314,1705264242210,-500.0,0.00027671,2]
[311598316,1705264242219,-500.0,0.00027671,2]
[311598318,1705264242229,-500.0,0.00027671,2]
[311598320,1705264242238,-500.0,0.00027671,2]
[311598322,1705264242248,-500.0,0.00027671,2]
[311598325,1705264242257,-500.0,0.00027671,2]
[311598326,1705264242266,-500.0,0.00027671,2]
[311598329,1705264242275,-500.0,0.00027671,2]
[311598331,1705264242285,-500.0,0.00027671,2]
[311598333,1705264242294,-500.0,0.00027671,2]
[311598334,1705264242304,-1533.84,0.00027671,2]
[311598336,1705264242313,-500.0,0.00027671,2]
[311598339,1705264242322,-500.0,0.00027671,2]
[311598341,1705264242332,-500.0,0.00027671,2]
[311598343,1705264242341,-614.02729468,0.00027671,2]
[311598344,1705264242350,-500.0,0.00027671,2]
[311598347,1705264242359,-508.23488749,0.00027671,2]
[311598349,1705264242368,-963.8,0.00027671,2]
[311598351,1705264242377,-500.0,0.00027671,2]
[311598353,1705264242386,-722.62,0.00027671,2]
[311598354,1705264242395,-500.0,0.00027671,2]
[311598356,1705264242404,-500.0,0.00027671,2]
[311598359,1705264242413,-500.0,0.00027671,2]
[311598360,1705264242422,-500.0,0.00027671,2]
[311598362,1705264242431,-500.0,0.00027671,2]
[311598364,1705264242440,-500.0,0.00027671,2]
[311598366,1705264242449,-500.0,0.00027671,2]
[311598368,1705264242459,-500.0,0.00027671,2]
[311598371,1705264242468,-765.6,0.00027671,2]
[311598373,1705264242477,-500.0,0.00027671,2]
[311598375,1705264242486,-508.19510463,0.00027671,2]
[311598376,1705264242495,-500.0,0.00027671,2]
[311598378,1705264242505,-500.0,0.00027671,2]
[311598380,1705264242513,-425.82178515,0.00027671,2]
[311598382,1705264242522,-583.1174725,0.00027671,2]
[311598384,1705264242532,-500.0,0.00027671,2]
[311598387,1705264242541,-500.0,0.00027671,2]
[311598389,1705264242550,-500.0,0.00027671,2]
[311598391,1705264242560,-500.0,0.00027671,2]
[311598393,1705264242570,-507.50239065,0.00027671,2]
[311598395,1705264242579,-500.0,0.00027671,2]
[311598397,1705264242588,-799.18,0.00027671,2]
[311598399,1705264242597,-500.0,0.00027671,2]
[311598402,1705264242607,-500.0,0.00027671,2]
[311598404,1705264242616,-500.0,0.00027671,2]
[311598406,1705264242626,-1000.0,0.00027671,2]
[311598408,1705264242635,-2844.31,0.00027671,2]
[311598410,1705264242644,-500.0,0.00027671,2]
[311598412,1705264242653,-500.0,0.00027671,2]
[311598413,1705264242662,-500.0,0.00027671,2]
[311598416,1705264242672,-500.0,0.00027671,2]
[311598417,1705264242681,-500.0,0.00027671,2]
[311598419,1705264242690,-500.0,0.00027671,2]
[311598421,1705264242699,-500.0,0.00027671,2]
[311598424,1705264242708,-500.0,0.00027671,2]
[311598427,1705264242718,-500.0,0.00027671,2]
[311598430,1705264242727,-1423.28,0.00027671,2]
[311598432,1705264242736,-500.0,0.00027671,2]
[311598434,1705264242745,-500.0,0.00027671,2]
[311598436,1705264242753,-500.0,0.00027671,2]
[311598438,1705264242763,-500.0,0.00027671,2]
[311598440,1705264242772,-531.03698778,0.00027671,2]
[311598442,1705264242781,-662.14,0.00027671,2]
[311598444,1705264242789,-500.0,0.00027671,2]
[311598446,1705264242799,-500.0,0.00027671,2]
[311598448,1705264242808,-500.0,0.00027671,2]
[311598450,1705264242817,-633.41,0.00027671,2]
[311598452,1705264242826,-500.0,0.00027671,2]
[311598454,1705264242838,-500.0,0.00027671,2]
[311598456,1705264242848,-500.0,0.00027671,2]
[311598457,1705264242857,-500.0,0.00027671,2]
[311598460,1705264242867,-500.0,0.00027671,2]
[311598462,1705264242876,-500.0,0.00027671,2]
[311598463,1705264242885,-500.0,0.00027671,2]
[311598465,1705264242895,-686.82414749,0.00027671,2]
[311598467,1705264242904,-500.0,0.00027671,2]
[311598469,1705264242913,-500.0,0.00027671,2]
[311598480,1705264242922,-500.0,0.00027671,2]
[311598482,1705264243009,-585.88152833,0.00027671,2]
[311598484,1705264243018,-1693.63,0.00027671,2]
[311598486,1705264243027,-3316.01553422,0.00027671,2]
[311598488,1705264243036,-500.0,0.00027671,2]
[311598490,1705264243045,-500.0,0.00027671,2]
[311598492,1705264243055,-500.0,0.00027671,2]
[311598494,1705264243064,-500.0,0.00027671,2]
[311598496,1705264243073,-500.0,0.00027671,2]
[311598498,1705264243084,-225.46911807,0.00027671,2]
[311598500,1705264243094,-528.99719746,0.00027671,2]
[311598502,1705264243103,-500.0,0.00027671,2]
[311598504,1705264243111,-1314.65,0.00027671,2]
[311598506,1705264243121,-1129.8,0.00027671,2]
[311598508,1705264243130,-500.0,0.00027671,2]
[311598510,1705264243142,-500.0,0.00027671,2]
[311598512,1705264243151,-500.0,0.00027671,2]
[311598514,1705264243161,-520.84,0.00027671,2]
[311598515,1705264243170,-325.550196,0.00027671,2]
[311598517,1705264243179,-500.0,0.00027671,2]
[311598519,1705264243188,-500.0,0.00027671,2]
[311598521,1705264243198,-786.77,0.00027671,2]
[311598524,1705264243207,-500.0,0.00027671,2]
[311598526,1705264243216,-500.0,0.00027671,2]
[311598528,1705264243225,-500.0,0.00027671,2]
[311598530,1705264243236,-500.0,0.00027671,2]
[311598532,1705264243246,-500.0,0.00027671,2]
[311598534,1705264243255,-500.0,0.00027671,2]
[311598536,1705264243264,-500.0,0.00027671,2]
[311598538,1705264243272,-224.57764706,0.00027671,2]
[311598539,1705264243281,-500.0,0.00027671,2]
[311598541,1705264243290,-500.0,0.00027671,2]
[311598543,1705264243299,-218.24059673,0.00027671,2]
[311598545,1705264243308,-500.0,0.00027671,2]
[311598547,1705264243317,-500.0,0.00027671,2]
[311598549,1705264243326,-500.0,0.00027671,2]
[311598551,1705264243336,-500.0,0.00027671,2]
[311598553,1705264243345,-500.0,0.00027671,2]
[311598555,1705264243354,-500.0,0.00027671,2]
[311598557,1705264243363,-1177.26,0.00027671,2]
[311598559,1705264243372,-1449.61,0.00027671,2]
[311598561,1705264243381,-500.0,0.00027671,2]
[311598563,1705264243390,-2627.62,0.00027671,2]
[311598565,1705264243399,-7106.64,0.00027671,2]
[311598567,1705264243408,-916.87,0.00027671,2]
[311598569,1705264243417,-512.92548497,0.00027671,2]
[311598571,1705264243426,-500.0,0.00027671,2]
[311598573,1705264243434,-826.08,0.00027671,2]
[311598575,1705264243443,-1337.99,0.00027671,2]
[311598576,1705264243452,-500.0,0.00027671,2]
[311598579,1705264243462,-500.0,0.00027671,2]
[311598580,1705264243473,-500.0,0.00027671,2]
[311598582,1705264243482,-500.0,0.00027671,2]
[311598584,1705264243492,-1566.52,0.00027671,2]
[311598586,1705264243502,-1129.25,0.00027671,2]
[311598588,1705264243512,-500.0,0.00027671,2]
[311598590,1705264243522,-500.0,0.00027671,2]
[311598592,1705264243533,-500.0,0.00027671,2]
[311598594,1705264243542,-500.0,0.00027671,2]
[311598596,1705264243551,-500.0,0.00027671,2]
[311598598,1705264243560,-500.0,0.00027671,2]
[311598600,1705264243569,-500.0,0.00027671,2]
[311598601,1705264243579,-500.0,0.00027671,2]
[311598602,1705264243588,-500.0,0.00027671,2]
[311598603,1705264243597,-500.0,0.00027671,2]
[311598604,1705264243605,-637.41,0.00027671,2]
[311598605,1705264243614,-500.0,0.00027671,2]
[311598606,1705264243623,-500.0,0.00027671,2]
[311598607,1705264243631,-500.0,0.00027671,2]
[311598608,1705264243640,-454.73107322,0.00027671,2]
[311598609,1705264243649,-500.0,0.00027671,2]
[311598610,1705264243658,-500.0,0.00027671,2]
[311598611,1705264243667,-500.0,0.00027671,2]
[311598612,1705264243675,-1637.5,0.00027671,2]
[311598613,1705264243684,-500.0,0.00027671,2]
[311598614,1705264243693,-500.0,0.00027671,2]
[311598615,1705264243702,-844.47,0.00027671,2]
[311598616,1705264243711,-1561.61,0.00027671,2]
[311598617,1705264243720,-500.0,0.00027671,2]
[311598618,1705264243729,-500.0,0.00027671,2]
[311598619,1705264243738,-500.0,0.00027671,2]
[311598620,1705264243747,-3193.22,0.00027671,2]
[311598621,1705264243756,-20131.27,0.00027671,2]
[311598622,1705264243765,-500.0,0.00027671,2]
[311598623,1705264243774,-661.29,0.00027671,2]
[311598624,1705264243783,-956.61,0.00027671,2]
[311598625,1705264243792,-727.2,0.00027671,2]
[311598626,1705264243801,-7327.27,0.00027671,2]
[311598627,1705264243809,-500.0,0.00027671,2]
[311598628,1705264243818,-500.0,0.00027671,2]
[311598629,1705264243826,-7039.43,0.00027671,2]
[311598630,1705264243837,-9189.85,0.00027671,2]
[311598631,1705264243848,-500.0,0.00027671,2]
[311598633,1705264243858,-26737.39,0.00027671,2]
[311598634,1705264243866,-1791.56,0.00027671,2]
[311598636,1705264243875,-500.0,0.00027671,2]
[311598638,1705264243884,-500.0,0.00027671,2]
[311598640,1705264243893,-646.54670166,0.00027671,2]
[311598642,1705264243903,-500.0,0.00027671,2]
[311598644,1705264243912,-4564.66,0.00027671,2]
[311598646,1705264243922,-500.0,0.00027671,2]
[311598648,1705264243931,-500.0,0.00027671,2]
[311598650,1705264243940,-525.21,0.00027671,2]
[311598652,1705264243949,-500.0,0.00027671,2]
[311598654,1705264243958,-500.0,0.00027671,2]
[311598656,1705264243968,-500.0,0.00027671,2]
[311598658,1705264243977,-500.0,0.00027671,2]
[311598660,1705264243986,-500.0,0.00027671,2]
[311598662,1705264243995,-500.0,0.00027671,2]
[311598664,1705264244004,-500.0,0.00027671,2]
[311598666,1705264244012,-500.0,0.00027671,2]
[311598668,1705264244022,-500.0,0.00027671,2]
[311598670,1705264244032,-500.0,0.00027671,2]
[311598672,1705264244041,-500.0,0.00027671,2]
[311598674,1705264244050,-500.0,0.00027671,2]
[311598676,1705264244059,-500.0,0.00027671,2]
[311598678,1705264244068,-500.0,0.00027671,2]
[311598680,1705264244076,-853.34,0.00027671,2]
[311598682,1705264244085,-500.0,0.00027671,2]
[311598684,1705264244097,-500.0,0.00027671,2]
[311598686,1705264244106,-500.0,0.00027671,2]
[311598687,1705264244115,-500.0,0.00027671,2]
[311598689,1705264244124,-500.0,0.00027671,2]
[311598691,1705264244133,-2618.63,0.00027671,2]
[311598693,1705264244144,-2567.95,0.00027671,2]
[311598695,1705264244153,-2000.0,0.0002768,2]
[311598697,1705264244162,-2000.0,0.0002769,2]
[311598699,1705264244171,-688.18928243,0.000277,2]
[311598701,1705264244181,-198.8089634,0.000277,2]
[311598703,1705264244190,-285.409839,0.000277,2]
[311598705,1705264244199,-198.8089634,0.000277,2]
[311598707,1705264244208,-3697.275843,0.000277,2]
[311598709,1705264244218,-500.0,0.00027808,2]
[311598711,1705264244227,-35653.01739407,0.00027845,2]
[311598713,1705264244236,-1480.679277,0.00027845,2]
[311598715,1705264244245,-1480.679277,0.00027845,2]
[311598717,1705264244254,-155.10702385,0.00027943,2]
[311598719,1705264244263,-4296.68578915,0.00027944,2]
[311598721,1705264244272,-540.92,0.00027944,2]
[311598723,1705264244281,-540.92,0.00027944,2]
[311598724,1705264244290,-540.92,0.00027944,2]
[311598726,1705264244299,-540.92,0.00027944,2]
[311598728,1705264244309,-151.0,0.00027945,2]
[311598730,1705264244318,-151.0,0.00027945,2]
[311598732,1705264244327,-151.0,0.00027945,2]
[311598734,1705264244340,-151.0,0.00027945,2]
[311598736,1705264244349,-1480.679277,0.00027945,2]
[311598738,1705264244358,-1480.679277,0.00027945,2]
[311598740,1705264244367,-2717.640134,0.00027945,2]
[311598742,1705264244376,-2717.640134,0.00027945,2]
[311598744,1705264244385,-2717.640134,0.00027945,2]
[311598746,1705264244394,-2717.640134,0.00027945,2]
[311598748,1705264244403,-2620.63287405,0.00027945,2]
[311598750,1705264244413,-436.51894821,0.00027945,2]
[311598752,1705264244422,-500.0,0.00027945,2]
[311598754,1705264244431,-500.0,0.00027945,2]
[311598756,1705264244440,-500.0,0.00027945,2]
[311598758,1705264244449,-519.9792115,0.00027945,2]
[311598760,1705264244458,-500.0,0.00027945,2]
[311598762,1705264244467,-500.0,0.00027945,2]
[311598764,1705264244476,-500.0,0.00027945,2]
[311598766,1705264244485,-500.0,0.00027945,2]
[311598768,1705264244494,-500.0,0.00027945,2]
[311598770,1705264244503,-1533.84,0.00027945,2]
[311598772,1705264244512,-500.0,0.00027945,2]
[311598774,1705264244521,-500.0,0.00027945,2]
[311598776,1705264244530,-500.0,0.00027945,2]
[311598778,1705264244539,-963.8,0.00027945,2]
[311598779,1705264244548,-500.0,0.00027945,2]
[311598781,1705264244558,-722.62,0.00027945,2]
[311598783,1705264244567,-500.0,0.00027945,2]
[311598785,1705264244576,-500.0,0.00027945,2]
[311598787,1705264244587,-500.0,0.00027945,2]
[311598789,1705264244596,-500.0,0.00027945,2]
[311598791,1705264244605,-500.0,0.00027945,2]
[311598793,1705264244615,-500.0,0.00027945,2]
[311598795,1705264244623,-500.0,0.00027945,2]
[311598797,1705264244632,-765.6,0.00027945,2]
[311598799,1705264244642,-500.0,0.00027945,2]
[311598801,1705264244651,-503.8784956,0.00027945,2]
[311598811,1705264244728,-500.0,0.00027945,2]
[311598813,1705264244738,-500.0,0.00027945,2]
[311598816,1705264244758,-500.0,0.00027945,2]
[311598818,1705264244768,-799.18,0.00027945,2]
[311598820,1705264244777,-500.0,0.00027945,2]
[311598821,1705264244786,-500.0,0.00027945,2]
[311598823,1705264244795,-443.16856451,0.00027945,2]
[311598825,1705264244804,-2844.31,0.00027945,2]
[311598827,1705264244813,-500.0,0.00027945,2]
[311598829,1705264244823,-500.0,0.00027945,2]
[311598831,1705264244833,-500.0,0.00027945,2]
[311598833,1705264244842,-500.0,0.00027945,2]
[311598835,1705264244852,-500.0,0.00027945,2]
[311598837,1705264244860,-500.0,0.00027945,2]
[311598839,1705264244870,-339.50865496,0.00027945,2]
[311598841,1705264244879,-1423.28,0.00027945,2]
[311598844,1705264244888,-500.0,0.00027945,2]
[311598845,1705264244898,-662.14,0.00027945,2]
[311598848,1705264244907,-500.0,0.00027945,2]
[311598849,1705264244916,-633.41,0.00027945,2]
[311598851,1705264244925,-500.0,0.00027945,2]
[311598853,1705264244934,-500.0,0.00027945,2]
[311598855,1705264244943,-500.0,0.00027945,2]
[311598857,1705264244952,-500.0,0.00027945,2]
[311598859,1705264244962,-500.0,0.00027945,2]
[311598861,1705264244972,-500.0,0.00027945,2]
[311598863,1705264244982,-1693.63,0.00027945,2]
[311598865,1705264244991,-500.0,0.00027945,2]
[311598867,1705264245003,-500.0,0.00027945,2]
[311598869,1705264245012,-1314.65,0.00027945,2]
[311598871,1705264245021,-1129.8,0.00027945,2]
[311598873,1705264245030,-500.0,0.00027945,2]
[311598875,1705264245039,-520.84,0.00027945,2]
[311598877,1705264245049,-170.11902549,0.00027945,2]
[311598879,1705264245058,-786.77,0.00027945,2]
[311598881,1705264245067,-500.0,0.00027945,2]
[311598883,1705264245076,-500.0,0.00027945,2]
[311598885,1705264245086,-500.0,0.00027945,2]
[311598887,1705264245095,-317.89344166,0.00027945,2]
[311598889,1705264245104,-500.0,0.00027945,2]
[311598891,1705264245113,-500.0,0.00027945,2]
[311598893,1705264245122,-500.0,0.00027945,2]
[311598895,1705264245131,-500.0,0.00027945,2]
[311598897,1705264245140,-500.0,0.00027945,2]
[311598899,1705264245150,-500.0,0.00027945,2]
[311598901,1705264245159,-1177.26,0.00027945,2]
[311598903,1705264245168,-1449.61,0.00027945,2]
[311598905,1705264245177,-500.0,0.00027945,2]
[311598907,1705264245186,-2627.62,0.00027945,2]
[311598909,1705264245196,-7106.64,0.00027945,2]
[311598911,1705264245205,-916.87,0.00027945,2]
[311598913,1705264245213,-500.0,0.00027945,2]
[311598915,1705264245222,-826.08,0.00027945,2]
[311598917,1705264245232,-1337.99,0.00027945,2]
[311598919,1705264245241,-500.0,0.00027945,2]
[311598921,1705264245250,-500.0,0.00027945,2]
[311598923,1705264245259,-1566.52,0.00027945,2]
[311598925,1705264245269,-500.0,0.00027945,2]
[311598927,1705264245278,-1129.25,0.00027945,2]
[311598929,1705264245287,-500.0,0.00027945,2]
[311598931,1705264245297,-500.0,0.00027945,2]
[311598933,1705264245306,-500.0,0.00027945,2]
[311598935,1705264245315,-637.41,0.00027945,2]
[311598937,1705264245324,-500.0,0.00027945,2]
[311598939,1705264245333,-500.0,0.00027945,2]
[311598941,1705264245342,-550.07310411,0.00027945,2]
[311598943,1705264245351,-500.0,0.00027945,2]
[311598945,1705264245360,-1637.5,0.00027945,2]
[311598947,1705264245369,-500.0,0.00027945,2]
[311598949,1705264245378,-500.0,0.00027945,2]
[311598950,1705264245388,-844.47,0.00027945,2]
[311598952,1705264245398,-1561.61,0.00027945,2]
[311598955,1705264245409,-500.0,0.00027945,2]
[311598956,1705264245419,-500.0,0.00027945,2]
[311598958,1705264245428,-500.0,0.00027945,2]
[311598960,1705264245437,-20131.27,0.00027945,2]
[311598962,1705264245446,-3193.22,0.00027945,2]
[311598964,1705264245455,-661.29,0.00027945,2]
[311598966,1705264245463,-956.61,0.00027945,2]
[311598968,1705264245472,-727.2,0.00027945,2]
[311598970,1705264245482,-7327.27,0.00027945,2]
[311598972,1705264245492,-500.0,0.00027945,2]
[311598974,1705264245501,-500.0,0.00027945,2]
[311598976,1705264245511,-7039.43,0.00027945,2]
[311598978,1705264245521,-9189.85,0.00027945,2]
[311598980,1705264245531,-26737.39,0.00027945,2]
[311598983,1705264245540,-1791.56,0.00027945,2]
[311598985,1705264245550,-500.0,0.00027945,2]
[311598987,1705264245561,-500.0,0.00027945,2]
[311598989,1705264245570,-4564.66,0.00027945,2]
[311598991,1705264245580,-500.0,0.00027945,2]
[311598993,1705264245589,-500.0,0.00027945,2]
[311598995,1705264245599,-525.21,0.00027945,2]
[311598997,1705264245608,-500.0,0.00027945,2]
[311598999,1705264245617,-500.0,0.00027945,2]
[311599001,1705264245627,-500.0,0.00027945,2]
[311599003,1705264245636,-500.0,0.00027945,2]
[311599005,1705264245646,-500.0,0.00027945,2]
[311599007,1705264245655,-500.0,0.00027945,2]
[311599009,1705264245666,-500.0,0.00027945,2]
[311599011,1705264245675,-500.0,0.00027945,2]
[311599013,1705264245685,-500.0,0.00027945,2]
[311599015,1705264245694,-503.70058373,0.00027945,2]
[311599017,1705264245703,-500.0,0.00027945,2]
[311599019,1705264245712,-234.14884369,0.00027945,2]
[311599021,1705264245721,-853.34,0.00027945,2]
[311599023,1705264245729,-500.0,0.00027945,2]
[311599025,1705264245738,-500.0,0.00027945,2]
[311599027,1705264245747,-2618.63,0.00027945,2]
[311599028,1705264245756,-500.0,0.00027945,2]
[311599031,1705264245765,-2567.95,0.00027945,2]
[311599034,1705264245775,-4109.29344934,0.00028,2]
[311599036,1705264245784,-1480.679277,0.00028,2]
[311599038,1705264245793,-1480.679277,0.00028,2]
[311599040,1705264245803,-507.13354579,0.00028,2]
[311599042,1705264245812,-500.0,0.00028082,2]
[311599044,1705264245821,-152.1251582,0.00028173,2]
[311599047,1705264245830,-677.43954104,0.00028217,2]
[311599049,1705264245839,-569.88082184,0.00028217,2]
[311599051,1705264245848,-540.92,0.00028218,2]
[311599053,1705264245858,-540.92,0.00028218,2]
[311599055,1705264245867,-540.92,0.00028218,2]
[311599057,1705264245877,-540.92,0.00028218,2]
[311599059,1705264245886,-151.0,0.00028219,2]
[311599061,1705264245895,-151.0,0.00028219,2]
[311599063,1705264245904,-1480.679277,0.00028219,2]
[311599065,1705264245913,-1480.679277,0.00028219,2]
[311599067,1705264245923,-2717.640134,0.00028219,2]
[311599069,1705264245932,-2717.640134,0.00028219,2]
[311599071,1705264245941,-2717.640134,0.00028219,2]
[311599073,1705264245950,-2717.640134,0.00028219,2]
[311599075,1705264245959,-500.0,0.00028219,2]
[311599077,1705264245967,-500.0,0.00028219,2]
[311599079,1705264245976,-500.0,0.00028219,2]
[311599081,1705264245985,-500.0,0.00028219,2]
[311599083,1705264245995,-500.0,0.00028219,2]
[311599085,1705264246004,-500.0,0.00028219,2]
[311599087,1705264246013,-500.0,0.00028219,2]
[311599089,1705264246022,-1533.84,0.00028219,2]
[311599091,1705264246031,-500.0,0.00028219,2]
[311599093,1705264246041,-500.0,0.00028219,2]
[311599094,1705264246051,-963.8,0.00028219,2]
[311599096,1705264246059,-500.0,0.00028219,2]
[311599098,1705264246069,-722.62,0.00028219,2]
[311599100,1705264246078,-500.0,0.00028219,2]
[311599102,1705264246088,-500.0,0.00028219,2]
[311599104,1705264246097,-500.0,0.00028219,2]
[311599106,1705264246106,-500.0,0.00028219,2]
[311599108,1705264246115,-500.0,0.00028219,2]
[311599110,1705264246125,-500.0,0.00028219,2]
[311599112,1705264246135,-765.6,0.00028219,2]
[311599113,1705264246145,-500.0,0.00028219,2]
[311599114,1705264246154,-500.0,0.00028219,2]
[311599115,1705264246162,-500.0,0.00028219,2]
[311599116,1705264246172,-500.0,0.00028219,2]
[311599117,1705264246181,-799.18,0.00028219,2]
[311599118,1705264246190,-500.0,0.00028219,2]
[311599119,1705264246198,-500.0,0.00028219,2]
[311599120,1705264246207,-2844.31,0.00028219,2]
[311599121,1705264246217,-500.0,0.00028219,2]
[311599122,1705264246226,-500.0,0.00028219,2]
[311599124,1705264246235,-500.0,0.00028219,2]
[311599126,1705264246244,-500.0,0.00028219,2]
[311599128,1705264246252,-498.36168387,0.00028219,2]
[311599129,1705264246261,-1423.28,0.00028219,2]